[Event "GrandPrix_30.05"]
[Site "Chess.com"]
[Date "2020.05.30"]
[Round "8"]
[White "yamalchess"]
[Black "kirillshevchenko"]
[Result "0-1"]
[WhiteElo "2359"]
[BlackElo "2666"]
[TimeControl "600+2"]
[EndTime "11:54:52 PDT"]
[Termination "kirillshevchenko won by resignation"]

1. d4 {[%clk 0:10:01.4]} 1... Nf6 {[%clk 0:10:00.8]} 2. c4 {[%clk 0:10:01.4]}
2... g6 {[%clk 0:10:01.6]} 3. Nc3 {[%clk 0:10:02.3]} 3... d5 {[%clk 0:10:02.4]}
4. Bf4 {[%clk 0:10:02]} 4... Bg7 {[%clk 0:09:59.1]} 5. Qa4+ {[%clk 0:10:02.3]}
5... Bd7 {[%clk 0:09:23.4]} 6. Qb3 {[%clk 0:10:01.9]} 6... dxc4 {[%clk
0:08:56.3]} 7. Qxb7 {[%clk 0:09:36.7]} 7... Bc6 {[%clk 0:08:38.1]} 8. Qxc7
{[%clk 0:09:35.4]} 8... Qxc7 {[%clk 0:08:33.3]} 9. Bxc7 {[%clk 0:09:35]} 9...
Na6 {[%clk 0:08:34.2]} 10. Be5 {[%clk 0:08:59.3]} 10... O-O {[%clk 0:07:51.4]}
11. f3 {[%clk 0:08:39.3]} 11... Nb4 {[%clk 0:06:45.3]} 12. O-O-O {[%clk
0:07:33.3]} 12... Bh6+ {[%clk 0:05:53.9]} 13. e3 {[%clk 0:07:15]} 13... Bxe3+
{[%clk 0:05:50.1]} 14. Kb1 {[%clk 0:07:15.5]} 14... Bd7 {[%clk 0:05:19]} 15.
Bxf6 {[%clk 0:06:52.7]} 15... exf6 {[%clk 0:05:17.9]} 16. Bxc4 {[%clk
0:06:46.6]} 16... Bf5+ {[%clk 0:04:27.5]} 17. Ne4 {[%clk 0:06:46.8]} 17... Rfe8
{[%clk 0:04:26.7]} 18. a3 {[%clk 0:05:41.1]} 18... Rxe4 {[%clk 0:04:17.3]} 19.
fxe4 {[%clk 0:05:38.7]} 19... Bxe4+ {[%clk 0:04:19.2]} 20. Ka1 {[%clk
0:05:38.7]} 20... Nc2+ {[%clk 0:04:20.8]} 21. Ka2 {[%clk 0:05:38.9]} 21... Bxg2
{[%clk 0:04:21.8]} 22. Ne2 {[%clk 0:05:26.9]} 22... Bxh1 {[%clk 0:04:21.6]} 23.
Rxh1 {[%clk 0:05:27.7]} 23... Nxd4 {[%clk 0:04:22.1]} 24. Nxd4 {[%clk
0:05:28.2]} 24... Bxd4 {[%clk 0:04:23.4]} 25. Rd1 {[%clk 0:05:29.4]} 25... Rd8
{[%clk 0:04:23.8]} 26. b4 {[%clk 0:05:28.2]} 26... Bb6 {[%clk 0:04:20.1]} 27.
Rxd8+ {[%clk 0:05:18.2]} 27... Bxd8 {[%clk 0:04:21.1]} 28. a4 {[%clk 0:05:18.1]}
28... Bc7 {[%clk 0:04:02.5]} 29. h3 {[%clk 0:05:18.2]} 29... f5 {[%clk
0:04:00.8]} 30. Kb3 {[%clk 0:05:13.1]} 30... a5 {[%clk 0:03:21.9]} 31. Bd5
{[%clk 0:04:45]} 31... Kg7 {[%clk 0:02:56.3]} 32. bxa5 {[%clk 0:04:36.1]} 32...
Bxa5 {[%clk 0:02:56.7]} 33. Kc4 {[%clk 0:04:37.1]} 33... h5 {[%clk 0:02:44.2]}
34. Kd4 {[%clk 0:03:52.3]} 34... Kf6 {[%clk 0:02:39]} 35. Ke3 {[%clk 0:03:50.4]}
35... g5 {[%clk 0:02:39.2]} 36. Bc4 {[%clk 0:03:36.6]} 36... g4 {[%clk 0:02:37]}
37. Kf2 {[%clk 0:03:31.3]} 37... f4 {[%clk 0:02:33.9]} 38. Bb3 {[%clk
0:03:23.8]} 38... Kg6 {[%clk 0:02:27.4]} 39. Kg2 {[%clk 0:02:55.7]} 39... f5
{[%clk 0:02:25.2]} 40. Be6 {[%clk 0:02:52.6]} 40... Kg5 {[%clk 0:02:25]} 41. Bd7
{[%clk 0:02:51.1]} 41... f3+ {[%clk 0:02:25.9]} 42. Kf2 {[%clk 0:02:41.7]} 42...
Bb6+ {[%clk 0:02:26]} 0-1

[Event "GrandPrix_30.05"]
[Site "Chess.com"]
[Date "2020.05.30"]
[Round "8"]
[White "TimofeevAr"]
[Black "rasmussvane"]
[Result "0-1"]
[WhiteElo "2576"]
[BlackElo "2527"]
[TimeControl "600+2"]
[EndTime "11:55:03 PDT"]
[Termination "rasmussvane won by resignation"]

1. c4 {[%clk 0:09:59.2]} 1... e6 {[%clk 0:09:59.9]} 2. Nf3 {[%clk 0:09:59.1]}
2... d5 {[%clk 0:10:00.9]} 3. e3 {[%clk 0:10:00]} 3... Nf6 {[%clk 0:10:01.4]} 4.
b3 {[%clk 0:10:00.6]} 4... c5 {[%clk 0:09:57.5]} 5. Bb2 {[%clk 0:10:00.7]} 5...
Nc6 {[%clk 0:09:58.1]} 6. cxd5 {[%clk 0:10:01.1]} 6... exd5 {[%clk 0:10:00]} 7.
Bb5 {[%clk 0:09:59.2]} 7... Bd6 {[%clk 0:10:01]} 8. O-O {[%clk 0:09:57.1]} 8...
O-O {[%clk 0:10:02.3]} 9. d4 {[%clk 0:09:57.9]} 9... cxd4 {[%clk 0:10:03.6]} 10.
Bxc6 {[%clk 0:09:42.6]} 10... bxc6 {[%clk 0:10:03.3]} 11. Qxd4 {[%clk
0:09:43.1]} 11... c5 {[%clk 0:09:02.8]} 12. Qh4 {[%clk 0:09:33]} 12... Ne4
{[%clk 0:08:48.7]} 13. Qxd8 {[%clk 0:09:29.8]} 13... Rxd8 {[%clk 0:08:50.6]} 14.
Rd1 {[%clk 0:09:14.7]} 14... Be6 {[%clk 0:08:08.7]} 15. Nbd2 {[%clk 0:09:09.1]}
15... Nxd2 {[%clk 0:08:06.6]} 16. Rxd2 {[%clk 0:09:09.8]} 16... a5 {[%clk
0:07:56.4]} 17. Ng5 {[%clk 0:07:44.4]} 17... a4 {[%clk 0:07:46.3]} 18. Nxe6
{[%clk 0:07:13.5]} 18... fxe6 {[%clk 0:07:48.2]} 19. bxa4 {[%clk 0:07:14.6]}
19... Rxa4 {[%clk 0:07:45.5]} 20. Kf1 {[%clk 0:07:06.2]} 20... Rda8 {[%clk
0:07:28.8]} 21. a3 {[%clk 0:07:06.7]} 21... Kf7 {[%clk 0:05:15.4]} 22. g3 {[%clk
0:06:59.9]} 22... Be7 {[%clk 0:05:03.1]} 23. Rc1 {[%clk 0:06:47]} 23... R8a5
{[%clk 0:04:27.1]} 24. Bc3 {[%clk 0:05:53.8]} 24... Rb5 {[%clk 0:04:06.9]} 25.
Rb2 {[%clk 0:05:53.5]} 25... Rxb2 {[%clk 0:03:56.8]} 26. Bxb2 {[%clk 0:05:54.5]}
26... c4 {[%clk 0:03:56.1]} 27. Ke2 {[%clk 0:05:54.4]} 27... Bf6 {[%clk
0:03:48.5]} 28. Bxf6 {[%clk 0:05:37.1]} 28... gxf6 {[%clk 0:03:50.4]} 29. Ra1
{[%clk 0:05:31.4]} 29... e5 {[%clk 0:03:49.8]} 30. Kd2 {[%clk 0:05:18.9]} 30...
Ke6 {[%clk 0:02:37]} 31. Kc3 {[%clk 0:05:19.2]} 31... Kd6 {[%clk 0:02:37.4]} 32.
Kb2 {[%clk 0:05:19.9]} 32... Kc5 {[%clk 0:02:30.6]} 33. f4 {[%clk 0:05:14.3]}
33... Ra6 {[%clk 0:01:44.6]} 34. fxe5 {[%clk 0:05:13.2]} 34... fxe5 {[%clk
0:01:41.3]} 35. a4 {[%clk 0:05:14.3]} 35... Kb4 {[%clk 0:01:04]} 36. Rd1 {[%clk
0:05:14.2]} 36... c3+ {[%clk 0:01:00.4]} 37. Kc2 {[%clk 0:05:12.2]} 37... Kc4
{[%clk 0:01:01.4]} 38. Ra1 {[%clk 0:04:31.3]} 38... d4 {[%clk 0:01:01.7]} 39.
exd4 {[%clk 0:04:32.6]} 39... exd4 {[%clk 0:01:03.6]} 40. a5 {[%clk 0:04:33.8]}
40... d3+ {[%clk 0:01:04.9]} 41. Kd1 {[%clk 0:04:35.1]} 41... Rf6 {[%clk
0:00:40.8]} 42. Ke1 {[%clk 0:04:35.5]} 42... d2+ {[%clk 0:00:34.2]} 43. Ke2
{[%clk 0:04:32.8]} 43... Re6+ {[%clk 0:00:35.6]} 44. Kf3 {[%clk 0:04:28.4]}
44... c2 {[%clk 0:00:36.1]} 0-1

[Event "GrandPrix_30.05"]
[Site "Chess.com"]
[Date "2020.05.30"]
[Round "8"]
[White "LorisinoC"]
[Black "RovenVogel"]
[Result "0-1"]
[WhiteElo "2225"]
[BlackElo "2445"]
[TimeControl "600+2"]
[EndTime "11:55:09 PDT"]
[Termination "RovenVogel won by resignation"]

1. e4 {[%clk 0:10:01.9]} 1... c5 {[%clk 0:10:00.1]} 2. Nf3 {[%clk 0:10:00.7]}
2... d6 {[%clk 0:10:00.6]} 3. Bb5+ {[%clk 0:09:59.3]} 3... Bd7 {[%clk
0:10:00.7]} 4. Bxd7+ {[%clk 0:09:59.7]} 4... Nxd7 {[%clk 0:10:02.6]} 5. c3
{[%clk 0:09:58]} 5... Ngf6 {[%clk 0:10:02.2]} 6. Qe2 {[%clk 0:09:57.9]} 6... e6
{[%clk 0:10:02.6]} 7. O-O {[%clk 0:09:59.3]} 7... Be7 {[%clk 0:10:02.9]} 8. Rd1
{[%clk 0:09:59.7]} 8... O-O {[%clk 0:10:01.5]} 9. d4 {[%clk 0:10:01.1]} 9... Qc7
{[%clk 0:08:11]} 10. h3 {[%clk 0:09:38.4]} 10... Rac8 {[%clk 0:08:09.7]} 11. Bf4
{[%clk 0:09:36.5]} 11... cxd4 {[%clk 0:08:06.4]} 12. cxd4 {[%clk 0:09:34.5]}
12... Qc2 {[%clk 0:08:05.6]} 13. Qxc2 {[%clk 0:09:24.8]} 13... Rxc2 {[%clk
0:08:07.5]} 14. e5 {[%clk 0:08:38.5]} 14... dxe5 {[%clk 0:07:58.3]} 15. dxe5
{[%clk 0:08:35.2]} 15... Nd5 {[%clk 0:07:59.1]} 16. Bc1 {[%clk 0:08:11.6]} 16...
Rfc8 {[%clk 0:06:38.5]} 17. Nbd2 {[%clk 0:07:59]} 17... Bb4 {[%clk 0:06:34.3]}
18. a3 {[%clk 0:07:46.4]} 18... Bxd2 {[%clk 0:06:30.2]} 19. Nxd2 {[%clk
0:06:35.8]} 19... Nxe5 {[%clk 0:06:28.7]} 20. Nb3 {[%clk 0:06:19.5]} 20... a6
{[%clk 0:05:06.4]} 21. Nd4 {[%clk 0:06:18.8]} 21... R2c7 {[%clk 0:05:02.6]} 22.
Bg5 {[%clk 0:06:06.2]} 22... Nc6 {[%clk 0:04:19.1]} 23. Rac1 {[%clk 0:05:02]}
23... Nxd4 {[%clk 0:04:17.8]} 24. Rxc7 {[%clk 0:05:02]} 24... Nf3+ {[%clk
0:04:17.4]} 25. gxf3 {[%clk 0:04:59.3]} 25... Rxc7 {[%clk 0:04:19.3]} 26. Be3
{[%clk 0:04:54.2]} 26... h6 {[%clk 0:04:02.5]} 27. Rd2 {[%clk 0:04:46.8]} 27...
Kh7 {[%clk 0:04:02.6]} 28. Kf1 {[%clk 0:04:47.4]} 28... Rc1+ {[%clk 0:03:57.7]}
29. Kg2 {[%clk 0:04:45.7]} 29... Rc4 {[%clk 0:03:58]} 30. Kg3 {[%clk 0:04:31.2]}
30... h5 {[%clk 0:03:51.8]} 31. f4 {[%clk 0:04:31.7]} 31... Kg6 {[%clk 0:03:50]}
32. Rd4 {[%clk 0:04:09.7]} 32... Nxe3 {[%clk 0:03:46.1]} 33. fxe3 {[%clk
0:04:05.8]} 33... Rxd4 {[%clk 0:03:46.9]} 34. exd4 {[%clk 0:04:06.6]} 34... Kf5
{[%clk 0:03:47.8]} 35. Kf3 {[%clk 0:04:07]} 35... h4 {[%clk 0:03:47.7]} 36. Ke3
{[%clk 0:03:58.5]} 36... f6 {[%clk 0:03:48.7]} 37. a4 {[%clk 0:03:46.4]} 37...
g5 {[%clk 0:03:15.2]} 38. fxg5 {[%clk 0:03:42.2]} 38... fxg5 {[%clk 0:03:17.1]}
39. Kf3 {[%clk 0:03:42.2]} 39... a5 {[%clk 0:03:16.9]} 40. b3 {[%clk 0:03:07.7]}
40... b6 {[%clk 0:03:14.6]} 41. Ke3 {[%clk 0:02:54.3]} 41... g4 {[%clk
0:03:13.7]} 42. hxg4+ {[%clk 0:02:40.8]} 42... Kxg4 {[%clk 0:03:15.6]} 43. Ke4
{[%clk 0:02:12.6]} 43... h3 {[%clk 0:03:05.4]} 44. d5 {[%clk 0:02:13.9]} 44...
exd5+ {[%clk 0:03:02.4]} 45. Kxd5 {[%clk 0:02:15.8]} 45... h2 {[%clk 0:03:02.5]}
46. Kc6 {[%clk 0:02:17.7]} 46... h1=Q+ {[%clk 0:03:04.4]} 47. Kxb6 {[%clk
0:02:18.4]} 47... Qd5 {[%clk 0:03:02.7]} 0-1

[Event "GrandPrix_30.05"]
[Site "Chess.com"]
[Date "2020.05.30"]
[Round "8"]
[White "Tokarev_Sergey"]
[Black "bernereremit"]
[Result "0-1"]
[WhiteElo "1990"]
[BlackElo "2114"]
[TimeControl "600+2"]
[EndTime "11:55:26 PDT"]
[Termination "bernereremit won by checkmate"]

1. c4 {[%clk 0:09:48]} 1... c5 {[%clk 0:09:59.7]} 2. Nc3 {[%clk 0:09:48.4]} 2...
Nc6 {[%clk 0:09:58.6]} 3. e4 {[%clk 0:09:49.2]} 3... g6 {[%clk 0:09:52.6]} 4. g3
{[%clk 0:09:47.8]} 4... Bg7 {[%clk 0:09:54.1]} 5. Bg2 {[%clk 0:09:48]} 5... e6
{[%clk 0:09:51.2]} 6. Nge2 {[%clk 0:09:49.2]} 6... Nge7 {[%clk 0:09:52.6]} 7.
O-O {[%clk 0:09:50.2]} 7... O-O {[%clk 0:09:54.1]} 8. d3 {[%clk 0:09:51.6]} 8...
Rb8 {[%clk 0:09:52.7]} 9. Rb1 {[%clk 0:09:51.4]} 9... d6 {[%clk 0:09:46.2]} 10.
a3 {[%clk 0:09:51.7]} 10... a5 {[%clk 0:09:26.3]} 11. Bg5 {[%clk 0:09:41]} 11...
Bd7 {[%clk 0:09:00.7]} 12. Qd2 {[%clk 0:09:39.3]} 12... Nd4 {[%clk 0:08:52.6]}
13. Nxd4 {[%clk 0:09:29.4]} 13... cxd4 {[%clk 0:08:51.8]} 14. Ne2 {[%clk
0:09:15]} 14... b5 {[%clk 0:08:31.5]} 15. b4 {[%clk 0:08:55.2]} 15... axb4
{[%clk 0:08:25.5]} 16. Rxb4 {[%clk 0:08:24.2]} 16... f6 {[%clk 0:07:56.3]} 17.
Bh6 {[%clk 0:08:22.3]} 17... bxc4 {[%clk 0:07:24.6]} 18. dxc4 {[%clk 0:08:17.3]}
18... e5 {[%clk 0:07:13.8]} 19. Rfb1 {[%clk 0:08:12.1]} 19... Qc7 {[%clk
0:07:08.5]} 20. Bxg7 {[%clk 0:07:58.3]} 20... Kxg7 {[%clk 0:07:09]} 21. Qb2
{[%clk 0:07:15.1]} 21... Rxb4 {[%clk 0:06:47.7]} 22. axb4 {[%clk 0:07:17]} 22...
Qxc4 {[%clk 0:06:43.5]} 23. Rc1 {[%clk 0:07:17.1]} 23... Qb5 {[%clk 0:06:24.9]}
24. Rc7 {[%clk 0:07:10.5]} 24... Rc8 {[%clk 0:06:13.4]} 25. Ra7 {[%clk
0:06:54.1]} 25... Rc4 {[%clk 0:05:35]} 26. Nc1 {[%clk 0:06:52.3]} 26... Rxb4
{[%clk 0:05:30.3]} 27. Qa2 {[%clk 0:06:33.3]} 27... Kf8 {[%clk 0:04:18.1]} 28.
Bf1 {[%clk 0:06:00.2]} 28... Qc6 {[%clk 0:04:05.8]} 29. Nd3 {[%clk 0:06:01.6]}
29... Rb8 {[%clk 0:04:00.8]} 30. Qa5 {[%clk 0:05:51.1]} 30... Rb7 {[%clk
0:03:27.3]} 31. Ra8+ {[%clk 0:04:38.8]} 31... Be8 {[%clk 0:03:25.9]} 32. Ra6
{[%clk 0:04:13.9]} 32... Qxe4 {[%clk 0:03:13.7]} 33. Rxd6 {[%clk 0:04:13]} 33...
Bc6 {[%clk 0:03:04.3]} 34. Rxf6+ {[%clk 0:04:06.7]} 34... Kg7 {[%clk 0:03:02.7]}
35. Rxc6 {[%clk 0:03:39]} 35... Nxc6 {[%clk 0:03:02.2]} 36. Qc5 {[%clk
0:03:23.6]} 36... Rb1 {[%clk 0:02:58.7]} 37. Qc2 {[%clk 0:03:20]} 37... Ra1
{[%clk 0:02:40.9]} 38. Qb2 {[%clk 0:03:12.3]} 38... Rxf1+ {[%clk 0:02:36.8]} 39.
Kxf1 {[%clk 0:03:10.8]} 39... Qxd3+ {[%clk 0:02:38.7]} 40. Kg1 {[%clk
0:03:12.5]} 40... Qc3 {[%clk 0:02:31.5]} 41. Qb7+ {[%clk 0:03:12.2]} 41... Kh6
{[%clk 0:02:30.3]} 42. Qc7 {[%clk 0:03:13.8]} 42... d3 {[%clk 0:02:30.6]} 43.
Qf7 {[%clk 0:03:08.2]} 43... Qe1+ {[%clk 0:02:28]} 44. Kg2 {[%clk 0:03:08]}
44... Qe4+ {[%clk 0:02:29.7]} 45. Kg1 {[%clk 0:03:09.5]} 45... Nd4 {[%clk
0:02:14.2]} 46. Qf8+ {[%clk 0:03:09.6]} 46... Kh5 {[%clk 0:02:12.1]} 47. Qe7
{[%clk 0:02:46.2]} 47... Ne2+ {[%clk 0:02:09.4]} 48. Kf1 {[%clk 0:02:45.3]}
48... Qh1# {[%clk 0:02:10.8]} 0-1

[Event "GrandPrix_30.05"]
[Site "Chess.com"]
[Date "2020.05.30"]
[Round "8"]
[White "Azatic"]
[Black "PotapovaM"]
[Result "1-0"]
[WhiteElo "2310"]
[BlackElo "2183"]
[TimeControl "600+2"]
[EndTime "11:55:39 PDT"]
[Termination "Azatic won by resignation"]

1. e4 {[%clk 0:10:01.9]} 1... c5 {[%clk 0:09:59.9]} 2. Nf3 {[%clk 0:10:02.7]}
2... d6 {[%clk 0:09:59.7]} 3. d4 {[%clk 0:10:03.4]} 3... cxd4 {[%clk 0:10:00.1]}
4. Nxd4 {[%clk 0:10:05.3]} 4... Nf6 {[%clk 0:10:00.5]} 5. Nc3 {[%clk 0:10:05.9]}
5... a6 {[%clk 0:10:02.1]} 6. Be3 {[%clk 0:10:05.9]} 6... e5 {[%clk 0:10:02.7]}
7. Nb3 {[%clk 0:10:06.4]} 7... Be6 {[%clk 0:10:04]} 8. Qd2 {[%clk 0:10:06.7]}
8... Be7 {[%clk 0:09:25.5]} 9. f3 {[%clk 0:10:06.1]} 9... O-O {[%clk 0:09:21.9]}
10. O-O-O {[%clk 0:10:04.3]} 10... Nbd7 {[%clk 0:09:14]} 11. g4 {[%clk 0:10:05]}
11... b5 {[%clk 0:09:13.2]} 12. g5 {[%clk 0:10:06.1]} 12... b4 {[%clk
0:09:10.6]} 13. Ne2 {[%clk 0:10:07]} 13... Ne8 {[%clk 0:09:08.4]} 14. f4 {[%clk
0:10:07.9]} 14... a5 {[%clk 0:09:09.7]} 15. f5 {[%clk 0:10:09]} 15... Bxb3
{[%clk 0:09:07.5]} 16. cxb3 {[%clk 0:09:51.5]} 16... a4 {[%clk 0:09:08.6]} 17.
Ng3 {[%clk 0:08:47.7]} 17... axb3 {[%clk 0:09:05.5]} 18. axb3 {[%clk 0:08:49.6]}
18... Nb6 {[%clk 0:08:43]} 19. Kb1 {[%clk 0:08:42.9]} 19... d5 {[%clk
0:07:33.1]} 20. f6 {[%clk 0:07:50.7]} 20... gxf6 {[%clk 0:07:05.7]} 21. gxf6
{[%clk 0:07:52.6]} 21... Nxf6 {[%clk 0:06:44.1]} 22. Nf5 {[%clk 0:05:55.5]}
22... Kh8 {[%clk 0:06:16.9]} 23. Bxb6 {[%clk 0:05:22.1]} 23... Qxb6 {[%clk
0:06:14.1]} 24. Qh6 {[%clk 0:05:21.4]} 24... Rg8 {[%clk 0:05:44.9]} 25. Nxe7
{[%clk 0:05:21.2]} 25... Rg7 {[%clk 0:04:32.9]} 26. exd5 {[%clk 0:04:50.1]}
26... Qf2 {[%clk 0:03:35.9]} 27. Bd3 {[%clk 0:04:27]} 27... Ng4 {[%clk
0:03:25.6]} 28. Qd2 {[%clk 0:03:16]} 28... Qa7 {[%clk 0:03:17.9]} 29. Nc6 {[%clk
0:03:16.6]} 29... Qa2+ {[%clk 0:02:53]} 30. Kc2 {[%clk 0:03:15.8]} 30... Ra3
{[%clk 0:02:53.9]} 31. Bc4 {[%clk 0:02:30.6]} 31... e4 {[%clk 0:02:52.6]} 32.
Nxb4 {[%clk 0:01:51.9]} 32... e3 {[%clk 0:02:17.1]} 33. Qd4 {[%clk 0:01:51.8]}
33... e2 {[%clk 0:02:11.7]} 34. Nxa2 {[%clk 0:01:45.3]} 34... exd1=Q+ {[%clk
0:02:10.1]} 35. Rxd1 {[%clk 0:01:47.2]} 35... Rxa2 {[%clk 0:02:12]} 36. d6
{[%clk 0:01:40.4]} 1-0

[Event "GrandPrix_30.05"]
[Site "Chess.com"]
[Date "2020.05.30"]
[Round "8"]
[White "Natalya_Buksa"]
[Black "Firegrizzly"]
[Result "1/2-1/2"]
[WhiteElo "2109"]
[BlackElo "2203"]
[TimeControl "600+2"]
[EndTime "11:55:43 PDT"]
[Termination "Game drawn - insufficient material"]

1. d4 {[%clk 0:09:32]} 1... Nf6 {[%clk 0:10:01.9]} 2. Nc3 {[%clk 0:09:32.1]}
2... g6 {[%clk 0:09:53.7]} 3. e4 {[%clk 0:09:32.2]} 3... d5 {[%clk 0:09:49.6]}
4. e5 {[%clk 0:09:32.8]} 4... Nh5 {[%clk 0:09:50.2]} 5. Be2 {[%clk 0:09:33.7]}
5... Ng7 {[%clk 0:09:50.3]} 6. Nf3 {[%clk 0:09:34.7]} 6... h5 {[%clk 0:09:43.4]}
7. Bf4 {[%clk 0:09:29.4]} 7... Bg4 {[%clk 0:09:43.6]} 8. h3 {[%clk 0:09:29.8]}
8... Bxf3 {[%clk 0:09:43.9]} 9. Bxf3 {[%clk 0:09:31.7]} 9... c6 {[%clk
0:09:45.2]} 10. Qd2 {[%clk 0:09:32.3]} 10... Ne6 {[%clk 0:09:43.6]} 11. Be3
{[%clk 0:09:33.3]} 11... Nd7 {[%clk 0:09:42.1]} 12. O-O-O {[%clk 0:09:32.4]}
12... b5 {[%clk 0:09:41.4]} 13. Kb1 {[%clk 0:09:32.7]} 13... Nb6 {[%clk
0:09:42.1]} 14. g4 {[%clk 0:09:21.1]} 14... h4 {[%clk 0:09:41.8]} 15. Be2 {[%clk
0:09:20.8]} 15... Nc4 {[%clk 0:09:36.5]} 16. Qd3 {[%clk 0:09:21.9]} 16... g5
{[%clk 0:09:31.6]} 17. b3 {[%clk 0:09:18.8]} 17... Nb6 {[%clk 0:09:06.2]} 18.
Qd2 {[%clk 0:09:19.4]} 18... b4 {[%clk 0:09:01.4]} 19. Na4 {[%clk 0:09:18.6]}
19... Nxa4 {[%clk 0:09:03]} 20. bxa4 {[%clk 0:09:20.5]} 20... Qa5 {[%clk
0:09:00.6]} 21. Ka1 {[%clk 0:09:04.6]} 21... Qxa4 {[%clk 0:08:59.7]} 22. Rb1
{[%clk 0:09:05.8]} 22... Rb8 {[%clk 0:08:55.2]} 23. Rb3 {[%clk 0:09:00.3]} 23...
Nf4 {[%clk 0:08:52.8]} 24. Bxf4 {[%clk 0:08:55.4]} 24... gxf4 {[%clk 0:08:54.7]}
25. Rhb1 {[%clk 0:08:56.4]} 25... e6 {[%clk 0:08:54.8]} 26. c3 {[%clk
0:08:55.7]} 26... c5 {[%clk 0:08:48.3]} 27. dxc5 {[%clk 0:08:39.7]} 27... Bxc5
{[%clk 0:08:47.4]} 28. cxb4 {[%clk 0:08:40.6]} 28... Bxf2 {[%clk 0:08:30.7]} 29.
Qxf4 {[%clk 0:08:41.1]} 29... Bg3 {[%clk 0:08:27]} 30. Qd4 {[%clk 0:08:29.3]}
30... Qc6 {[%clk 0:08:14.7]} 31. Rc3 {[%clk 0:08:26]} 31... Qb6 {[%clk
0:08:14.1]} 32. Qxb6 {[%clk 0:08:16.2]} 32... axb6 {[%clk 0:08:14.1]} 33. Bb5+
{[%clk 0:08:13]} 33... Ke7 {[%clk 0:08:05.1]} 34. Re3 {[%clk 0:07:54.6]} 34...
Rhg8 {[%clk 0:07:59.4]} 35. Rc1 {[%clk 0:07:47.4]} 35... Rbc8 {[%clk 0:07:58.5]}
36. Rxc8 {[%clk 0:07:45.8]} 36... Rxc8 {[%clk 0:07:58.5]} 37. Kb2 {[%clk
0:07:47.3]} 37... d4 {[%clk 0:07:46.4]} 38. Re4 {[%clk 0:07:35]} 38... Rd8
{[%clk 0:07:46.5]} 39. Kc2 {[%clk 0:06:55.4]} 39... Rc8+ {[%clk 0:07:27]} 40.
Kd2 {[%clk 0:06:51.8]} 40... Bf2 {[%clk 0:07:23.5]} 41. Re2 {[%clk 0:06:10]}
41... Bg1 {[%clk 0:07:21.9]} 42. Rg2 {[%clk 0:05:59.2]} 42... Be3+ {[%clk
0:07:20.4]} 43. Kd3 {[%clk 0:06:00.4]} 43... Rc3+ {[%clk 0:07:21.3]} 44. Ke4
{[%clk 0:06:01.6]} 44... Ra3 {[%clk 0:07:06.8]} 45. g5 {[%clk 0:05:39.9]} 45...
Kf8 {[%clk 0:06:56.5]} 46. g6 {[%clk 0:05:30.3]} 46... Kg7 {[%clk 0:06:48]} 47.
Be8 {[%clk 0:04:56.3]} 47... fxg6 {[%clk 0:06:47.7]} 48. Rxg6+ {[%clk
0:04:56.8]} 48... Kf8 {[%clk 0:06:48.7]} 49. Rxe6 {[%clk 0:04:49.5]} 49... Bg5
{[%clk 0:06:19.4]} 50. Kxd4 {[%clk 0:04:41.3]} 50... Rxh3 {[%clk 0:06:17.6]} 51.
Bc6 {[%clk 0:04:23.8]} 51... Ra3 {[%clk 0:06:13.8]} 52. Rg6 {[%clk 0:04:18.3]}
52... Be7 {[%clk 0:05:46.4]} 53. Bd5 {[%clk 0:04:03.7]} 53... Bxb4 {[%clk
0:05:43]} 54. Rxb6 {[%clk 0:04:02.5]} 54... Bc3+ {[%clk 0:05:36.6]} 55. Ke4
{[%clk 0:04:00.3]} 55... h3 {[%clk 0:05:26.5]} 56. Rh6 {[%clk 0:03:56.6]} 56...
Bd2 {[%clk 0:05:20.8]} 57. Rh7 {[%clk 0:03:41.4]} 57... Re3+ {[%clk 0:05:02.2]}
58. Kf5 {[%clk 0:03:42]} 58... Bc3 {[%clk 0:05:01.8]} 59. Be4 {[%clk 0:03:34.6]}
59... Kg8 {[%clk 0:04:45.2]} 60. Rh4 {[%clk 0:03:28.7]} 60... Rg3 {[%clk
0:04:38.5]} 61. a4 {[%clk 0:03:17.5]} 61... Kg7 {[%clk 0:04:20]} 62. e6 {[%clk
0:03:11.3]} 62... Bb4 {[%clk 0:04:11.6]} 63. Rg4+ {[%clk 0:03:03.8]} 63... Rxg4
{[%clk 0:04:11.6]} 64. Kxg4 {[%clk 0:03:05.7]} 64... Kf6 {[%clk 0:04:11.4]} 65.
Bd5 {[%clk 0:02:55.5]} 65... Ke5 {[%clk 0:04:09.8]} 66. a5 {[%clk 0:02:36.6]}
66... Kxd5 {[%clk 0:04:00.9]} 67. a6 {[%clk 0:02:27.6]} 67... Kc6 {[%clk
0:04:00.1]} 68. Kxh3 {[%clk 0:02:24.1]} 68... Kb6 {[%clk 0:03:59.9]} 69. Kg4
{[%clk 0:02:25]} 69... Kxa6 {[%clk 0:04:00.8]} 70. Kf5 {[%clk 0:02:26.9]} 70...
Kb6 {[%clk 0:04:01.7]} 71. Kf6 {[%clk 0:02:28.6]} 71... Kc6 {[%clk 0:04:03.1]}
72. e7 {[%clk 0:02:29.7]} 72... Kd7 {[%clk 0:04:00.5]} 73. Kf7 {[%clk
0:02:29.4]} 73... Bxe7 {[%clk 0:04:01.3]} 1/2-1/2